Cogmind - Beta 16.1 @@@ ROGUE MODE // 2026.05.03 @ 18:29:58 Player: Dinner Result: Destroyed by D-53 Grenadier with Mini Grenade Launcher Performance ------------- Evolutions (1) 500 Regions Visited (3) 600 Robots Destroyed (18) 90 Value Destroyed (269) 269 Prototype IDs (0) 0 Alien Tech Used (0) 0 Bonus (0) 0 TOTAL SCORE: 1459 Bonus ------- None Cogmind --------- Core Integrity 0/400 Matter 240/300 Energy 18/100 System Corruption 0% Temperature Cool (57) Movement Core (50) Location -9/Mines Parts ------- > --- POWER (2) -------- (None) > --- PROPULSION (2) --- (None) > --- UTILITY (2) ------ Improved Targeting Computer > --- WEAPON (3) ------- (None) > --- INVENTORY (5) ---- Light Nuclear Core Improved Light Armor Plating Datajack Peak State ------------ > --- POWER ------------ Light Ion Engine Light Ion Engine > --- PROPULSION ------- Wheel Compact Wheel > --- UTILITY ---------- Targeting Computer Improved Targeting Computer > --- WEAPON ----------- Medium Laser Medium Laser Small Laser > --- INVENTORY -------- Beam Cannon Light Assault Rifle Grenade Launcher [Rating: 10] Favorites ----------- Power Light Ion Engine Engine Light Ion Engine Propulsion Compact Wheel Wheel Compact Wheel Utility Targeting Computer Processor Targeting Computer Weapon Medium Laser Energy Gun Medium Laser Energy Cannon Beam Cannon Ballistic Gun Light Assault Rifle Launcher Grenade Launcher Build | -11 -10 -9 -9 ------- Run | Yrd Mat Mat Min Slots Evolved 2 | . . 2 . Power 1 | . . 1 . Propulsion . | . . . . Utility . | . . . . Weapon 1 | . . 1 . Parts Attached 13 | 5 3 3 2 Power 2 | 1 . 1 . Engine 2 | 1 . 1 . Core . | . . . . Reactor . | . . . . Propulsion 2 | 2 . . . Treads . | . . . . Leg . | . . . . Wheel 2 | 2 . . . Hover . | . . . . Flight . | . . . . Utility 2 | . 1 1 . Device . | . . . . Storage . | . . . . Processor 2 | . 1 1 . Hackware . | . . . . Protection . | . . . . Artifact . | . . . . Weapon 7 | 2 2 1 2 Energy Gun 4 | 2 . 1 1 Energy Cannon 1 | . 1 . . Ballistic Gun 1 | . 1 . . Ballistic Cannon . | . . . . Launcher 1 | . . . 1 Special Weapon . | . . . . Impact Weapon . | . . . . Slashing Weapon . | . . . . Piercing Weapon . | . . . . Special Melee Weapon . | . . . . Unidentified Prototypes . | . . . . Parts Lost 9 | . . 3 6 Power 2 | . . 1 1 Propulsion 2 | . . 1 1 Utility . | . . . . Weapon 5 | . . 1 4 Highest Loss Streak 6 | . . 2 6 To Critical Strikes . | . . . . Average Backups 3 | . 2 4 3 Power . | . . . 1 Propulsion . | . . . . Utility . | . . . 1 Weapon 1 | . 2 2 . Tool/Special . | . . . . Unused Backups 3 | . . . 3 Power 1 | . . . 1 Propulsion . | . . . . Utility 1 | . . . 1 Weapon . | . . . . Tool/Special 1 | . . . 1 Average Slot Usage (%) 80 | . 78 88 62 Engine 15 | . 14 19 9 Wheel 20 | . 28 18 9 Processor 13 | . 7 19 12 Energy Gun 21 | . 14 30 11 Energy Cannon 3 | . 3 . 11 Ballistic Gun 3 | . 10 . . Launcher 1 | . . . 8 Peak Build Rating 10 | 5 6 10 8 Average Rating 7 | 3 5 8 6 On Entrance 4 | . 5 6 8 Avg Prop Armor Cover (%) . | . . . . Naked Turns . | . . . . Heaviest Build 11 | 6 7 11 11 Greatest Support 26 | 26 26 26 16 Greatest Overweight (x) 1 | . . . 1 Average Overweight (x) . | . . . . Largest Inventory Capacity 5 | 5 5 5 5 Average Capacity 5 | 5 5 5 5 Most Carried 5 | 2 4 5 4 Average Carried 3 | . 2 4 3 Final Capacity 5 | 5 5 5 5 Final Carried 4 | . 4 4 3 Class Distribution -------------------- 57% | Gunner 42% | Mutant Dominant Class ---------------- Mutant | -10/Materials Gunner | -9/Materials Gunner | -9/Mines Resources | -11 -10 -9 -9 ----------- Run | Yrd Mat Mat Min Matter Collected 390 | 183 87 82 38 Remotely . | . . . . Salvage Created 411 | 71 87 236 17 Parts 34 | 3 6 25 . Haulers Intercepted . | . . . . Recyclers Shooed 1 | . . 1 . Parts Field Recycled . | . . . . Retrieved Matter . | . . . . Parts Self-Destructed . | . . . . Prevented . | . . . . Parts Restored . | . . . . Kills | -11 -10 -9 -9 ------- Run | Yrd Mat Mat Min Combat Hostiles Destroyed 14 | . 2 11 1 Guns 13 | . 2 11 . Cannons 1 | . . . 1 Classes Destroyed 7 | 1 1 4 1 Worker 1 | . . 1 . Builder 1 | . . 1 . Recycler 1 | 1 . . . Watcher 1 | . . 1 . Swarmer 11 | . . 11 . Grunt 2 | . 2 . . Demolisher 1 | . . . 1 Best Kill Streak 6 | 1 2 6 1 Combat Bots Only 4 | . 2 4 1 Max Kills in Single Turn 2 | 1 1 2 1 Gunslinging 1 | . . 1 . Exploded . | . . . . Melee . | . . . . Uniques/NPCs Destroyed . | . . . . Combat | -11 -10 -9 -9 -------- Run | Yrd Mat Mat Min Hostile Shots Fired 74 | . 12 51 11 Missed 16 | . 3 13 . Hits 58 | . 9 38 11 Projectile 58 | . 9 38 11 AOE 14 | . . . 14 Critical Strikes 2 | . . 2 . Damage Taken 961 | . 97 376 488 Core 428 | . 22 155 251 Absorbed by Shields . | . . . . Regen/Repaired (Parts) 19 | . . 19 . Core Remaining (%) 95 | 100 91 . . Volleys Fired 39 | 2 10 23 4 Largest 3 | 2 2 3 2 Hottest 140 | 90 90 140 105 Shots Fired 93 | 4 20 62 7 Gun 89 | 4 20 61 4 Cannon 4 | . . 1 3 Launcher . | . . . . Special . | . . . . Kinetic 7 | . 7 . . Thermal 82 | 4 13 62 3 Explosive . | . . . . Electromagnetic 4 | . . . 4 Robot Hit Streak 11 | 1 10 11 4 Robot Miss Streak 3 | 1 2 3 2 Penetration Max . | . . . . Secondary Targets 3 | . 1 2 . Max Gunslinging Chain 1 | . 1 1 . Shots Hit Robots 48 | 2 14 28 4 Core Hits 26 | 2 5 15 4 Critical Kills . | . . . . Critical Parts Destroyed . | . . . . Critical Strikes 4 | . 2 2 . Burn 4 | . 2 2 . Melee Attacks . | . . . . Impact . | . . . . Slashing . | . . . . Piercing . | . . . . Sneak Attacks . | . . . . Combat Hostiles . | . . . . Follow-up Attacks . | . . . . Damage Inflicted 607 | 26 158 358 65 Guns 554 | 26 158 358 12 Cannons 53 | . . . 53 Explosions . | . . . . Melee . | . . . . Ramming . | . . . . Kinetic 55 | . 55 . . Thermal 540 | 26 103 358 53 Explosive . | . . . . Electromagnetic 12 | . . . 12 Impact . | . . . . Slashing . | . . . . Piercing . | . . . . Highest Corruption 1 | . 1 . . Average Corruption 1 | . 1 . . Corruption Purged . | . . . . Corruption Blocked . | . . . . Overload Shots . | . . . . Overflow Damage . | . . . . Projectiles . | . . . . Explosions . | . . . . Melee . | . . . . Knockbacks . | . . . . Impact . | . . . . Kinetic . | . . . . Secondary . | . . . . Self-Inflicted Damage . | . . . . Shots . | . . . . Rammed 1 | . . 1 . Targets Rammed 1 | . . 1 . Kicked . | . . . . Crushed . | . . . . Highest Temperature 645 | 60 148 645 91 Average Temperature 199 | 33 64 264 58 Received Heat Transfer 90 | . 54 36 . Effects 29 | . . 29 . Shutdowns 11 | . . 11 . Energy Bleed 4 | . . 4 . Interference 2 | . . 2 . Matter Decay 2 | . . 2 . Short Circuit 2 | . . 2 . Damage (minor) 1 | . . 1 . Damage (major) 6 | . . 6 . Damage (core) 1 | . . 1 . Siege Activations . | . . . . Martial Activations . | . . . . Shielding Activations . | . . . . Robots Disrupted . | . . . . Combat Hostiles . | . . . . Robots Corrupted . | . . . . Combat Hostiles . | . . . . Parts Fried . | . . . . Impact Corruptions . | . . . . Robots Melted . | . . . . Combat Hostiles . | . . . . Parts Melted 2 | . . 2 . Heat Transferred 1779 | 74 444 1150 111 Parts Sabotaged . | . . . . Parts Stolen . | . . . . Parts Stripped . | . . . . Power Chain Reactions . | . . . . Alert | -11 -10 -9 -9 ------- Run | Yrd Mat Mat Min Maximum Alert Level . | . . . . Low Security (%) 100 | 100 100 100 100 Level 1 . | . . . . Level 2 . | . . . . Level 3 . | . . . . Level 4 . | . . . . Level 5 . | . . . . High Security . | . . . . Max Security . | . . . . Peak Influence 168 | 5 50 168 57 Initial 57 | . . 8 57 Average 37 | 2 11 64 36 Influence Increases 383 | 5 50 298 30 Destroy 0b10 Robot/C 280 | . 40 220 20 Destroy 0b10 Robot/NC 20 | 5 . 15 . Destroy Leader 52 | . 10 32 10 Disable Machine 15 | . . 15 . Destroy Structure 1 | . . 1 . Lose Combat Pursuer 15 | . . 15 . Influence Decreases 373 | 5 30 170 168 Entered New Map 103 | . . 12 91 Time Decay 203 | 5 30 128 40 Lost Part 67 | . . 30 37 Squads Dispatched 3 | . 2 1 . Investigation 1 | . . 1 . Extermination . | . . . . Reinforcement 2 | . 2 . . Assault . | . . . . Garrison . | . . . . Intercept . | . . . . Searches Triggered . | . . . . Construction Impeded . | . . . . Haulers Reinforced . | . . . . Active Scanning Responses . | . . . . Cargo Convoy Interrupts . | . . . . Stealth | -11 -10 -9 -9 --------- Run | Yrd Mat Mat Min Distress Signals 1 | . . 1 . Communications Jammed . | . . . . Distress Signals . | . . . . Times Spotted 21 | . 3 16 2 Peak Tracking Total 7 | . 2 7 2 Tactical Retreats 1 | . . 1 . Traps | -11 -10 -9 -9 ------- Run | Yrd Mat Mat Min Traps Triggered 1 | . 1 . . Indirectly . | . . . . Trap Hack Attempts . | . . . . Triggered . | . . . . Disarmed . | . . . . Reprogrammed . | . . . . Reused . | . . . . Traps Extracted . | . . . . Installed . | . . . . Triggered . | . . . . Machines | -11 -10 -9 -9 ---------- Run | Yrd Mat Mat Min Machines Disabled 1 | . . 1 . Max in Single Turn 1 | . . 1 . Machines Repaired . | . . . . Machines Dismantled . | . . . . Machines Sabotaged . | . . . . Overloaded Fab Kills . | . . . . Hacking | -11 -10 -9 -9 --------- Run | Yrd Mat Mat Min Machines Accessed 1 | . . 1 . Terminals . | . . . . Fabricators . | . . . . Repair Stations 1 | . . 1 . Recycling Units . | . . . . Scanalyzers . | . . . . Garrison Access . | . . . . Total Hacks 3 | . . 3 . Successful 2 | . . 2 . Failed 1 | . . 1 . Catastrophic . | . . . . Database Lockouts . | . . . . Manual . | . . . . Terminals . | . . . . Fabricators . | . . . . Repair Stations 3 | . . 3 . Recycling Units . | . . . . Scanalyzers . | . . . . Garrison Access . | . . . . Terminal Hacks . | . . . . Fabricator Hacks . | . . . . Repair Station Hacks 2 | . . 2 . Scan Component 1 | . . 1 . Repair 1 | . . 1 . Recycling Unit Hacks . | . . . . Scanalyzer . | . . . . Garrison Access Hacks . | . . . . Unauthorized Hacks . | . . . . Terminals . | . . . . Fabricators . | . . . . Repair Stations . | . . . . Recycling Units . | . . . . Scanalyzers . | . . . . Garrison Access . | . . . . Data Cores Recovered . | . . . . Used . | . . . . Hacking Detections 1 | . . 1 . Full Trace Events 1 | . . 1 . Feedback Events . | . . . . Feedback Blocked . | . . . . Robot Schematics Acquired . | . . . . Robots Built . | . . . . Authchips . | . . . . Time . | . . . . Total Robot Build Rating . | . . . . Part Schematics Acquired . | . . . . Parts Built . | . . . . Authchips . | . . . . Time . | . . . . Total Part Build Rating . | . . . . Part Studies Acquired . | . . . . Parts Repaired 1 | . . 1 . Time 26 | . . 26 . Parts Recycled . | . . . . Recycled Matter . | . . . . Retrieved Matter . | . . . . Retrieved Components . | . . . . Parts Scanalyzed . | . . . . Part Schematics Acquired . | . . . . Parts Damaged . | . . . . Bothacking | -11 -10 -9 -9 ------------ Run | Yrd Mat Mat Min Used RIF Installer . | . . . . Robots Hacked . | . . . . Non-combat . | . . . . Combat . | . . . . Robot Hacks Applied . | . . . . Relay Couplers Released . | . . . . Fabnet Peak Effective % . | . . . . Robots Rewired . | . . . . Allies Hacked . | . . . . Hacks Repelled . | . . . . Allies | -11 -10 -9 -9 -------- Run | Yrd Mat Mat Min Total Allies . | . . . . Largest Group . | . . . . Highest-Rated Group . | . . . . Highest-Rated Ally . | . . . . Total Orders . | . . . . Ally Attacks . | . . . . Total Damage . | . . . . Kills . | . . . . Allies Corrupted . | . . . . Allies Melted . | . . . . Intel | -11 -10 -9 -9 ------- Run | Yrd Mat Mat Min Active Infowar (turns) . | . . . . Robot Analysis Total . | . . . . Derelict Logs Recovered 1 | . . . 1 Drone Launches . | . . . . Drone Recoveries . | . . . . Exploration | -11 -10 -9 -9 ------------- Run | Yrd Mat Mat Min Turns Passed 616 | 40 217 262 97 Spaces Moved 458 | 30 200 154 74 Core 7 | 6 . . 1 Treads . | . . . . Legs . | . . . . Wheels 451 | 24 200 154 73 Hover . | . . . . Flight . | . . . . Fastest Speed 50 | 50 90 90 100 Average Speed 91 | 82 90 91 100 Slowest Speed 100 | 90 90 100 100 Overloaded Moves . | . . . . Propulsion Burnouts . | . . . . Robots Hopped . | . . . . Potential Cave-ins . | . . . . Cave-ins Triggered . | . . . . Exploration Rate (%) 18 | 3 21 20 30 Regions Visited 3 Branch Regions 1 Pre-discovered Areas . | . . . . Known Exits Taken . | . . . . Unknown Exits Taken 3 | 1 1 1 . Scrap Searched 1 | . . . 1 Spaces Dug . | . . . . Terrain Destroyed . | . . . . Melee . | . . . . Projectile . | . . . . AOE . | . . . . Terrain Rammed . | . . . . Walls Destroyed . | . . . . Machines Disabled . | . . . . Actions | -11 -10 -9 -9 --------- Run | Yrd Mat Mat Min Total 579 | 41 217 229 92 Wait 42 | . . 33 9 Move 455 | 29 199 153 74 Hop . | . . . . Pick Up 18 | 5 5 7 1 Fast Attach . | . . . . Attach 16 | 5 1 8 2 Detach 2 | . . 2 . Swap 2 | . 2 . . Drop 4 | . . 2 2 Fire 39 | 2 10 23 4 Melee . | . . . . Ram 1 | . . 1 . Kick . | . . . . Crush . | . . . . Escape Stasis . | . . . . Rewire . | . . . . Trap . | . . . . Miscellaneous . | . . . . Route ------- -11/Scrapyard -10/Materials -9/Materials -9/Mines History --------- Turn | Location | Event 28 | -11/Scrapyard | Discovered new exit (range 15) 41 | -11/Scrapyard | Entered Materials 248 | -10/Materials | Discovered new exit (range 12) 258 | -10/Materials | Entered another Materials area 258 | -9/Materials | Evolved 2 slots: Power x1, Weapon x1 357 | -9/Materials | Repaired Com. Wheel 456 | -9/Materials | Discovered new exit (range 16) 520 | -9/Materials | Entered Mines 550 | -9/Mines | Assembled infested the area 555 | -9/Mines | Assisted by a Guerilla fighting off Assembled 562 | -9/Mines | Build established: Gunner 595 | -9/Mines | Learned location of 1 exit from Materials 606 | -9/Mines | Core integrity fell below 50% 610 | -9/Mines | Core integrity fell below 20% 617 | -9/Mines | Destroyed by D-53 Grenadier with Mini Grenade Launcher Last Messages --------------- 00597_ T-07 Excavator is excavating. 00598_ Acquired 38 matter. 00599_ Acquired Hvy. EM Pulse Gun. 00600_ UL-IUM(h): "I'll hold them off! Go on ahead or try to find another way!" 00601_ Lgt. Ion Engine destroyed. 00601_ UL-IUM(h) destroyed. 00602_ T-07 Excavator is excavating. 00603_ The unstable cave ceiling collapses. 00603_ Med. Laser destroyed. 00603_ Grenade Launcher destroyed. 00606_ T-07 Excavator is excavating. 00608_ Com. Wheel destroyed. 00609_ D-53 Grenadier destroyed. 00610_ The unstable cave ceiling collapses. 00610_ T-07 Excavator is excavating. 00611_ The unstable cave ceiling collapses. 00615_ Beam Cannon destroyed. 00616_ The unstable cave ceiling collapses. 00617_ Hvy. EM Pulse Gun destroyed. Map ----- +----------------------------------------------------+ | | | | | | | | | | | | | | | ???????????????????????????????????????????? | | ???????????????????????????????????????????? | | ???????????????????????????????????????????? | | ???????????????????????????????????????????? | | ???????????????????????????????????????????? | | ???????????????????????????????????????????? | | ???????????????????????????????????????????? | | ???????????????????????????????????????????? | | ??????????????????##???????????????????????? | | ??????????????????# ##????????????????????? | | ??????????????????# #????????????????????? | | ???????????????????# #######??????????????? | | ???????????????????# ##?????????????? | | ?????###""########## # ##????????????? | | ?????# X ! # # ##???????????? | | ?????# #???????????? | | ###### #### ####?????????? | | # ##??# #?????????? | | ##???# @ # #?????????? | | ##????## #???????????? | | ### ##??????# ##???????????? | | ##?####???????# % ##????????????? | | #????????????# %# ###?????????????? | | #???????????# d!##???????????????? | | ### #???????????# / ?????????????????? | | ??## #???????????## ### ?????????????????? | | ???####????????????##??## ????????????????? | | ?????????????????????????##????????????????? | | ???????????????????????????????????????????? | | ???????????????????????????????????????????? | | ???????????????????????????????????????????? | | ???????????????????????????????????????????? | | ???????????????????????????????????????????? | | ???????????????????????????????????????????? | | ???????????????????????????????????????????? | | ???????????????????????????????????????????? | | ???????????????????????????????????????????? | | ???????????????????????????????????????????? | | ???????????????????????????????????????????? | | ???????????????????????????????????????????? | | ???????????????????????????????????????????? | | ???????????????????????????????????????????? | | ???????????????????????????????????????????? | +----------------------------------------------------+ Best States ------------- Heat Dissipation 28 Energy Generation 15 Energy Capacity 150 Matter Stores 300 Matter Capacity 300 Sight Range 16 Terrain Scan Density 10 Evasion (%) 42 Targeting Accuracy 11 Item Schematics ----------------- None Robot Schematics ------------------ None Fabricated ------------ Nothing Repaired ---------- Com. Wheel | 36% | -9/Materials Studied --------- None Alien Tech Used ----------------- None Achievements -------------- I Have A Map? Challenges ------------ None Game ------ Seed SupersonicElectrostormLink Manual? 0 Play Time 00:16:36 Cumulative 6.3 hours Start 2026.05.03 @ 17:58:58 End 2026.05.03 @ 18:29:58 Sessions 1 Manual Loads 0 Difficulty Rogue Special Mode None Game No. 17 Rogue 17 Adventurer 0 Explorer 0 Win Type - Total 0 Types 0/0/0/0/0/0/0/0/0/0 Lore% 3 Gallery% 12 Achievement% 10 Wizard Run 0 Options --------- Layout 2 ASCII 0 Keyboard 0 Movement Mouse Keybinds 0 Fullscreen 1 Font 24/Terminus Map View 50x49 Zoom Use 0% Tactical HUD 1 Map Filters NONE Filters NONE Steam 1 RUN: da53984a-ca0f-4c75-80a2-e4499c1c1075